Cogmind - Beta 13 *** ADVENTURER MODE // 2024.07.04 @ 13:01:20 Player: Dmitry Result: Destroyed by D-53 Grenadier with Mini Grenade Launcher Performance ------------- Evolutions (0) 0 Regions Visited (4) 800 Robots Destroyed (15) 75 Value Destroyed (123) 123 Prototype IDs (4) 80 Alien Tech Used (0) 0 Bonus (328) 328 TOTAL SCORE: 1406 Bonus ------- Follower Combat Kills 28 Aligned with FarCom 300 Cogmind --------- Core Integrity 0/250 Matter 291/300 Energy 100/100 System Corruption 1% Temperature Cool (0) Movement Core (700) Ox13 Location -9/Mines Parts ------- > --- POWER (1) -------- (None) > --- PROPULSION (2) --- (None) > --- UTILITY (2) ------ High-capacity Storage Unit Modified TNC > --- WEAPON (2) ------- (None) > --- INVENTORY (20) --- Hover Unit High-capacity Storage Unit Medium Matter Pod (59) Structural Scanner Sensor Array Seismic Detector ECM Suite Army-in-a-Box Light Assault Rifle Grenade Launcher Peak State ------------ > --- POWER ------------ Ion Engine > --- PROPULSION ------- Aluminum Leg Aluminum Leg > --- UTILITY ---------- Large Storage Unit Modified TNC > --- WEAPON ----------- Guided Plasma Cannon Light Assault Rifle > --- INVENTORY -------- Hover Unit High-capacity Storage Unit Medium Matter Pod Structural Scanner Sensor Array ECM Suite Army-in-a-Box Light Assault Rifle Light Assault Rifle Grenade Launcher [Rating: 25] Favorites ----------- Power Ion Engine Engine Ion Engine Propulsion Aluminum Leg Leg Aluminum Leg Wheel Wheel Utility Seismic Detector Device Seismic Detector Storage Large Storage Unit Processor Modified TNC Weapon Light Assault Rifle Energy Gun Medium Laser Energy Cannon Guided Plasma Cannon Ballistic Gun Light Assault Rifle Special Weapon Mining Laser Build | -11 -10 -10 -10 -9 ------- Run | Yrd Mat Min Exi Min Slots Evolved . | . . . . . Power . | . . . . . Propulsion . | . . . . . Utility . | . . . . . Weapon . | . . . . . Parts Attached 17 | 8 1 2 4 2 Power 1 | 1 . . . . Engine 1 | 1 . . . . Core . | . . . . . Reactor . | . . . . . Propulsion 4 | 2 . . . 2 Treads . | . . . . . Leg 2 | 2 . . . . Wheel 2 | . . . . 2 Hover . | . . . . . Flight . | . . . . . Utility 5 | 2 1 . 2 . Device 2 | 2 . . . . Storage 2 | . 1 . 1 . Processor 1 | . . . 1 . Hackware . | . . . . . Protection . | . . . . . Artifact . | . . . . . Weapon 7 | 3 . 2 2 . Energy Gun 1 | 1 . . . . Energy Cannon 1 | . . . 1 . Ballistic Gun 4 | 1 . 2 1 . Ballistic Cannon . | . . . . . Launcher . | . . . . . Special Weapon 1 | 1 . . . . Impact Weapon . | . . . . . Slashing Weapon . | . . . . . Piercing Weapon . | . . . . . Special Melee Weapon . | . . . . . Unidentified Prototypes 2 | . . . 2 . Parts Lost 6 | . 1 . . 5 Power 1 | . . . . 1 Propulsion 2 | . . . . 2 Utility . | . . . . . Weapon 3 | . 1 . . 2 Highest Loss Streak 5 | . 1 . . 5 To Critical Strikes . | . . . . . Average Slot Usage (%) 97 | . 97 95 100 93 Engine 13 | . 14 14 14 12 Leg 27 | . 28 28 28 7 Device 15 | . 27 14 11 . Storage 11 | . . 14 14 14 Processor 1 | . . . 2 14 Energy Cannon 1 | . . . 2 14 Ballistic Gun 21 | . 14 23 25 14 Special Weapon 2 | . 11 . . . Naked Turns . | . . . . . Heaviest Build 56 | 9 27 28 56 56 Greatest Support 20 | 20 20 20 20 20 Greatest Overweight (x) 16 | . 1 1 2 16 Average Overweight (x) . | . . 1 1 2 Largest Inventory Capacity 20 | 5 15 15 20 20 Average Capacity 12 | 5 5 15 15 20 Most Carried 15 | 1 6 7 15 15 Average Carried 6 | . 2 6 9 15 Final Capacity 20 | 5 15 15 20 20 Final Carried 15 | . 6 7 15 15 Class Distribution -------------------- 100% | Mutant Dominant Class ---------------- Mutant | -10/Materials Mutant | -10/Mines Mutant | -10/Exiles Mutant | -9/Mines Resources | -11 -10 -10 -10 -9 ----------- Run | Yrd Mat Min Exi Min Matter Collected 530 | 297 51 113 . 69 Remotely . | . . . . . Salvage Created 312 | 169 80 15 . 48 Parts 28 | 14 10 2 . 2 Haulers Intercepted . | . . . . . Recyclers Shooed . | . . . . . Parts Field Recycled . | . . . . . Retrieved Matter . | . . . . . Parts Self-Destructed . | . . . . . Prevented . | . . . . . Kills | -11 -10 -10 -10 -9 ------- Run | Yrd Mat Min Exi Min Combat Hostiles Destroyed 6 | . 4 1 . 1 Guns 6 | . 4 1 . 1 Classes Destroyed 7 | 2 3 . . 2 Worker 2 | . . . . 2 Builder 1 | . 1 . . . Tunneler 4 | 4 . . . . Recycler 1 | 1 . . . . Watcher 2 | . 2 . . . Swarmer 5 | . 4 1 . . Assembled 1 | . . . . 1 Best Kill Streak 3 | 3 3 1 . 1 Combat Bots Only 3 | . 3 1 . 1 Max Kills in Single Turn 1 | 1 1 1 . 1 Gunslinging . | . . . . . Exploded . | . . . . . Melee . | . . . . . Uniques/NPCs Destroyed . | . . . . . Combat | -11 -10 -10 -10 -9 -------- Run | Yrd Mat Min Exi Min Hostile Shots Fired 70 | . 39 12 . 19 Missed 25 | . 19 3 . 3 Damage Taken 760 | . 156 56 . 548 Core 259 | . 7 16 . 236 Absorbed by Shields . | . . . . . Ignored by Resistances 219 | . 50 18 . 151 Core Remaining (%) 100 | 100 . . . . Volleys Fired 74 | 17 40 8 . 9 Largest 2 | 2 2 1 . 1 Hottest 120 | 120 120 20 . 120 Shots Fired 85 | 25 42 8 1 9 Gun 75 | 24 39 8 1 3 Cannon 6 | . . . . 6 Launcher . | . . . . . Special 4 | 1 3 . . . Kinetic 68 | 17 39 8 1 3 Thermal 17 | 8 3 . . 6 Explosive . | . . . . . Electromagnetic . | . . . . . Robot Hit Streak 15 | 15 11 3 . 8 Robot Miss Streak 2 | 1 2 2 1 1 Penetration Max . | . . . . . Secondary Targets . | . . . . . Shots Hit Robots 62 | 20 29 5 . 8 Core Hits 27 | 10 14 2 . 1 Critical Kills . | . . . . . Critical Parts Destroyed 1 | 1 . . . . Critical Strikes 3 | 3 . . . . Burn 2 | 2 . . . . Destroy 1 | 1 . . . . Melee Attacks . | . . . . . Impact . | . . . . . Slashing . | . . . . . Piercing . | . . . . . Sneak Attacks . | . . . . . Combat Hostiles . | . . . . . Follow-up Attacks . | . . . . . Damage Inflicted 732 | 190 263 39 . 240 Guns 461 | 190 215 39 . 17 Cannons 223 | . . . . 223 Explosions . | . . . . . Melee . | . . . . . Ramming . | . . . . . Kinetic 389 | 118 215 39 . 17 Thermal 343 | 72 48 . . 223 Explosive . | . . . . . Electromagnetic . | . . . . . Impact . | . . . . . Slashing . | . . . . . Piercing . | . . . . . Highest Corruption 1 | . 1 1 1 1 Average Corruption 1 | . 1 1 1 1 Corruption Purged . | . . . . . Corruption Blocked . | . . . . . Effects 28 | . 7 11 10 . Message Errors 5 | . . 3 2 . Matter Fused 9 | . 2 4 3 . Heat Flow Errors 2 | . 2 . . . Energy Discharges 5 | . 2 1 2 . Data Loss (minor) 2 | . . 1 1 . Data Loss (major) 2 | . . 1 1 . Misfires 1 | . . . 1 . Alerts 1 | . . 1 . . Weapon Failures 1 | . 1 . . . Overload Shots . | . . . . . Overflow Damage 63 | . . . . 63 Projectiles 63 | . . . . 63 Explosions . | . . . . . Melee . | . . . . . Knockbacks . | . . . . . Impact . | . . . . . Kinetic . | . . . . . Secondary . | . . . . . Self-Inflicted Damage . | . . . . . Shots . | . . . . . Rammed . | . . . . . Targets Rammed . | . . . . . Kicked . | . . . . . Crushed . | . . . . . Highest Temperature 320 | 110 156 . . 320 Average Temperature 78 | 46 43 . . 138 Received Heat Transfer . | . . . . . Effects 2 | . . . . 2 Interference 1 | . . . . 1 Short Circuit 1 | . . . . 1 Siege Activations . | . . . . . Robots Corrupted . | . . . . . Combat Hostiles . | . . . . . Parts Fried . | . . . . . Impact Corruptions . | . . . . . Robots Melted . | . . . . . Combat Hostiles . | . . . . . Parts Melted 2 | 2 . . . . Heat Transferred 950 | 370 100 . . 480 Parts Sabotaged . | . . . . . Parts Stolen . | . . . . . Parts Stripped . | . . . . . Power Chain Reactions . | . . . . . Alert | -11 -10 -10 -10 -9 ------- Run | Yrd Mat Min Exi Min Peak Influence 132 | 25 132 74 . 10 Initial 13 | . 13 6 . . Average 23 | 13 35 18 . 6 Maximum Alert Level . | . . . . . Low Security (%) 100 | 100 100 100 . 100 Level 1 . | . . . . . Level 2 . | . . . . . Level 3 . | . . . . . Level 4 . | . . . . . Level 5 . | . . . . . High Security . | . . . . . Max Security . | . . . . . Squads Dispatched . | . . . . . Investigation . | . . . . . Extermination . | . . . . . Reinforcement . | . . . . . Assault . | . . . . . Garrison . | . . . . . Intercept . | . . . . . Searches Triggered . | . . . . . Construction Impeded . | . . . . . Haulers Reinforced . | . . . . . Active Scanning Responses . | . . . . . Cargo Convoy Interrupts . | . . . . . Stealth | -11 -10 -10 -10 -9 --------- Run | Yrd Mat Min Exi Min Distress Signals . | . . . . . Communications Jammed . | . . . . . Distress Signals . | . . . . . Times Spotted 26 | . 12 5 . 9 Peak Tracking Total 9 | . 3 3 . 9 Tactical Retreats . | . . . . . Traps | -11 -10 -10 -10 -9 ------- Run | Yrd Mat Min Exi Min Traps Triggered 2 | . 2 . . . Indirectly . | . . . . . Trap Hack Attempts . | . . . . . Triggered . | . . . . . Disarmed . | . . . . . Reprogrammed . | . . . . . Reused . | . . . . . Traps Extracted . | . . . . . Installed . | . . . . . Triggered . | . . . . . Machines | -11 -10 -10 -10 -9 ---------- Run | Yrd Mat Min Exi Min Machines Disabled . | . . . . . Max in Single Turn . | . . . . . Machines Repaired . | . . . . . Machines Dismantled . | . . . . . Machines Sabotaged . | . . . . . Overloaded Fab Kills . | . . . . . Hacking | -11 -10 -10 -10 -9 --------- Run | Yrd Mat Min Exi Min Machines Accessed 14 | . 10 . 4 . Terminals 8 | . 8 . . . Fabricators . | . . . . . Repair Stations . | . . . . . Recycling Units 2 | . 2 . . . Scanalyzers . | . . . . . Garrison Access . | . . . . . Total Hacks 64 | . 15 . 49 . Successful 53 | . 4 . 49 . Failed 11 | . 11 . . . Catastrophic 7 | . 7 . . . Database Lockouts . | . . . . . Manual 9 | . 8 . 1 . Terminals 13 | . 13 . . . Fabricators . | . . . . . Repair Stations . | . . . . . Recycling Units 2 | . 2 . . . Scanalyzers . | . . . . . Garrison Access . | . . . . . Terminal Hacks 51 | . 2 . 49 . Record 49 | . . . 49 . Prototype ID Bank 1 | . 1 . . . Branch Access Points 1 | . 1 . . . Fabricator Hacks . | . . . . . Repair Station Hacks . | . . . . . Recycling Unit Hacks 2 | . 2 . . . Report Inventory 2 | . 2 . . . Scanalyzer . | . . . . . Garrison Access Hacks . | . . . . . Unauthorized Hacks . | . . . . . Terminals . | . . . . . Fabricators . | . . . . . Repair Stations . | . . . . . Recycling Units . | . . . . . Scanalyzers . | . . . . . Garrison Access . | . . . . . Data Cores Recovered . | . . . . . Used . | . . . . . Hacking Detections 7 | . 7 . . . Full Trace Events . | . . . . . Feedback Events . | . . . . . Feedback Blocked . | . . . . . Robot Schematics Acquired . | . . . . . Robots Built . | . . . . . Authchips . | . . . . . Time . | . . . . . Total Robot Build Rating . | . . . . . Part Schematics Acquired . | . . . . . Parts Built . | . . . . . Authchips . | . . . . . Time . | . . . . . Total Part Build Rating . | . . . . . Parts Repaired . | . . . . . Time . | . . . . . Parts Recycled . | . . . . . Recycled Matter . | . . . . . Retrieved Matter . | . . . . . Retrieved Components . | . . . . . Parts Scanalyzed . | . . . . . Part Schematics Acquired . | . . . . . Parts Damaged . | . . . . . Bothacking | -11 -10 -10 -10 -9 ------------ Run | Yrd Mat Min Exi Min Used RIF Installer . | . . . . . Robots Hacked . | . . . . . Non-combat . | . . . . . Combat . | . . . . . Robot Hacks Applied . | . . . . . Relay Couplers Released . | . . . . . Fabnet Peak Effective % . | . . . . . Robots Rewired . | . . . . . Allies Hacked . | . . . . . Hacks Repelled . | . . . . . Allies | -11 -10 -10 -10 -9 -------- Run | Yrd Mat Min Exi Min Total Allies 2 | . . 2 . . Largest Group 2 | . . 2 1 . Highest-Rated Group 52 | . . 52 31 . Highest-Rated Ally 31 | . . 31 31 . Total Orders . | . . . . . Ally Attacks 7 | . . 7 . . Total Damage 85 | . . 85 . . Kills 4 | . . 4 . . Allies Corrupted . | . . . . . Allies Melted . | . . . . . Intel | -11 -10 -10 -10 -9 ------- Run | Yrd Mat Min Exi Min Robot Analysis Total . | . . . . . Derelict Logs Recovered 2 | . . 1 . 1 Drone Launches . | . . . . . Drone Recoveries . | . . . . . Exploration | -11 -10 -10 -10 -9 ------------- Run | Yrd Mat Min Exi Min Turns Passed 4352 | 155 922 1523 1584 168 Spaces Moved 2480 | 94 681 793 814 98 Core 16 | 15 . . . 1 Treads . | . . . . . Legs 2381 | 79 681 793 814 14 Wheels 83 | . . . . 83 Hover . | . . . . . Flight . | . . . . . Fastest Speed 50 | 50 120 190 190 110 Average Speed 167 | 108 122 190 193 150 Slowest Speed 850 | 120 190 190 260 850 Overloaded Moves . | . . . . . Propulsion Burnouts . | . . . . . Robots Hopped . | . . . . . Cave-ins Triggered . | . . . . . Exploration Rate (%) 60 | 4 73 98 94 31 Regions Visited 4 Branch Regions 3 Pre-discovered Areas 2 | . . 1 1 . Known Exits Taken 2 | . 1 1 . . Unknown Exits Taken 2 | 1 . . 1 . Scrap Searched 2 | . . 1 . 1 Spaces Dug . | . . . . . Terrain Destroyed 2 | 1 1 . . . Melee . | . . . . . Projectile 2 | 1 1 . . . AOE . | . . . . . Terrain Rammed . | . . . . . Walls Destroyed . | . . . . . Machines Disabled . | . . . . . Actions | -11 -10 -10 -10 -9 --------- Run | Yrd Mat Min Exi Min Total 2587 | 120 728 802 826 111 Wait . | . . . . . Move 2476 | 93 680 792 813 98 Hop . | . . . . . Pick Up 12 | 1 6 . 5 . Fast Attach 12 | 7 1 1 1 2 Attach 2 | 1 . . 1 . Detach . | . . . . . Swap 3 | . . 1 2 . Drop 8 | 1 1 . 4 2 Fire 74 | 17 40 8 . 9 Melee . | . . . . . Ram . | . . . . . Kick . | . . . . . Crush . | . . . . . Escape Stasis . | . . . . . Rewire . | . . . . . Trap . | . . . . . Miscellaneous . | . . . . . Route ------- -11/Scrapyard -10/Materials (discovered 3 exits: [*Mat x2] / *Min) -10/Mines (discovered 3 exits: [*Mat x2] / *Exi) -10/Exiles (discovered 2 exits: [*Min x2]) -9/Mines (discovered 1 exit: [*Mat]) History --------- Turn | Location | Event 9 | -11/Scrapyard | Discovered new exit (range 14) 156 | -11/Scrapyard | Entered Materials 309 | -10/Materials | Build established: Mutant 372 | -10/Materials | Discovered new exit (range 9) 512 | -10/Materials | Discovered new exit (range 3) 778 | -10/Materials | Identified exit to Mines 1078 | -10/Materials | Entered Mines 1324 | -10/Mines | Discovered new exit (range 3) 1545 | -10/Mines | Identified exit to Exiles 1613 | -10/Mines | Discovered new exit (range 9) 1983 | -10/Mines | Deemed a non-threat by the Exiles lab entrance 2330 | -10/Mines | Learned location of Storage (-7) 2601 | -10/Mines | Entered Exiles 2601 | -10/Exiles | Accompanied by 1 ally 2631 | -10/Exiles | Led the pair of lost Derelicts to a safe place 2655 | -10/Exiles | Discovered new exit (range 15) 2721 | -10/Exiles | Met 8R-AWN 2776 | -10/Exiles | Met EX-HEX 2897 | -10/Exiles | Met EX-DEC 3060 | -10/Exiles | Learned location of Zion (-6) 3236 | -10/Exiles | Visited The Gauntlet 3608 | -10/Exiles | Met EX-BIN 3655 | -10/Exiles | Aligned with FarCom system 3657 | -10/Exiles | Given EX-Vault access code 3786 | -10/Exiles | Opened EX-Vault 3853 | -10/Exiles | Found Prototype Device 3861 | -10/Exiles | Found Prototype Processor 3874 | -10/Exiles | Identified Modified TNC 3875 | -10/Exiles | Found Prototype Energy Cannon 3876 | -10/Exiles | Identified Gui. Plasma Cannon 3927 | -10/Exiles | Warned to stay clear of 0b10 Research branches 4139 | -10/Exiles | Discovered new exit (range 14) 4185 | -10/Exiles | Stole three prototypes: Modified TNC, Gui. Plasma Cannon, Army-in-a-Box 4185 | -10/Exiles | Entered Mines 4196 | -9/Mines | Discovered new exit (range 8) 4278 | -9/Mines | Learned location of 2 exits from Materials 4305 | -9/Mines | Assembled infested the area 4310 | -9/Mines | Assisted by a Guerilla fighting off Assembled 4347 | -9/Mines | Core integrity fell below 50% 4352 | -9/Mines | Core integrity fell below 20% 4353 | -9/Mines | Destroyed by D-53 Grenadier with Mini Grenade Launcher Last Messages --------------- R-06 Scavenger destroyed. as-56603 destroyed. as-00761 destroyed. as-20153 destroyed. as-58548 destroyed. as-97490 destroyed. T-07 Excavator destroyed. Ion Engine destroyed. Wheel destroyed. The unstable cave ceiling collapses. R-06 Scavenger destroyed. The unstable cave ceiling collapses. Wheel destroyed. K-01 Serf collects debris. The unstable cave ceiling collapses. K-01 Serf collects debris. Broken Gui. Plasma Cannon destroyed. The unstable cave ceiling collapses. Lgt. Assault Rifle destroyed. K-01 Serf collects debris. Map ----- +----------------------------------------------------+ | | | | | | | ?????????????????????????????????????????????????? | | ???????????########??????????????????????????????? | | ???######## #??????????????????????????????? | | ??## """ #??????????????????????????????? | | ?## """ #??????????????????????????????? | | ## #### """ #?????????? ??????????????????? | | # #??# #?????????? #?????????????????? | | # < ##?#########?????????? #?????????????????? | | # ###?????????????????# #?????????????????? | | # == ##????????????????# #?????????????????? | | ## ##???????????????# #?????????????????? | | ?## ##??????????????# #?????????????????? | | ??#### #??????????????# #?????????????????? | | ??##?## ##??????????????# #?????????????????? | | ?## ?## ##???????????##### #??#??????????????? | | ## ?## ##???????????# ## #? #??????????????? | | # ### #?????????### # ##$#??????????????? | | #????????## #??????????????? | | #????##### #??????????????? | | #???## ## ##?????????????? | | ##### #?????????????? | | ##?????????????? | | ] @ #####??????????? | | ### ##?????????? | | d ##????????? | | ##???????? | | ### d ##??????? | | ###### ##?# % [ ##?????? | | #?????####??# = a% | | ????????????## # #??? | | # ?????????? k #### # #??? | | # ???????? k ##???# # ##??? | | ?????????########## ##?????#### = ##???? | | ??????????????????## ##?????????? %= ##????? | | ???????????????????######???????????? ! #?????? | | ????????????????????????????????????? #?????? | | ?????????????????????????????????????# | ##?????? | | ??????????????????????????????????????# ##??????? | | ???????????????????????????????????????###???????? | | ?????????????????????????????????????????????????? | | ?????????????????????????????????????????????????? | | ?????????????????????????????????????????????????? | | ?????????????????????????????????????????????????? | | ?????????????????????????????????????????????????? | | ?????????????????????????????????????????????????? | | ?????????????????????????????????????????????????? | | ?????????????????????????????????????????????????? | +----------------------------------------------------+ Best States ------------- Heat Dissipation 25 Energy Generation 10 Energy Capacity 250 Matter Stores 300 Matter Capacity 300 Sight Range 16 Terrain Scan Range 16 Terrain Scan Density 10 Resistance: KI 20 Resistance: TH 20 Resistance: EX 20 Resistance: EM 20 Resistance: I 20 Resistance: S 20 Resistance: P 20 Evasion (%) 55 Offensive Hacking 10 Item Schematics ----------------- None Robot Schematics ------------------ None Fabricated ------------ Nothing Alien Tech Used ----------------- None Achievements -------------- None Challenges ------------ None Game ------ Seed SpacefoldMappingNanovents Manual? 0 Play Time 00:34:33 Cumulative 6.5 hours Start 2024.07.04 @ 01:18:18 End 2024.07.04 @ 13:01:20 Sessions 3 Manual Loads 0 Difficulty Adventurer Special Mode None Game No. 9 Rogue 0 Adventurer 9 Explorer 0 Win Type - Total 0 Types 0/0/0/0/0/0/0/0/0 Lore% 16 Gallery% 14 Achievement% 14 Wizard Run 0 Options --------- Layout 0 ASCII 0 Keyboard 0 Movement Arrows Keybinds 0 Fullscreen 2 Font 36/Smallcaps Map View 76x50 Zoom Use 0% Tactical HUD 0 Map Filters NONE Filters NONE Steam 0 RUN: 43864ca4-a5b6-4c64-9200-50d89c6dbdde